Workbook

Sheet List1
B1: Dobavitelj | C1: Saint-Gobain Gradbeni izdelki d.o.o., Cvetkova ulica 1, 1000 Ljubljana | G1: 1. Logistični podatki artikel (na mersko enoto cenika) | L1: 2. Logistični podatki paket (škatla, vreča, vedro...) | S1: 3. Logistični podatki paleta
B2: CENIK ZA LETO 2026, veljaven od 9.3.2026 | G2: 1. Logistical data for the product (basic unit of measure) | L2: 2. Logistical data for packaging type (box, sack, bucket) | S2: 3. Logistical data for pallet
C3: Navedene cene so v EUR, brez DDV (kjer ni posebej navedeno) in veljajo ExWorks Laško/Ljubljana | G3: 1. Logistikdaten für die Produkte (Grundlegender Messeinheit) | L3: 2. Logistikdaten für Paket (Karton, Sack, Eimer) | S3: 3. Logistikdaten für Pallete
A4: SLO | B4: EAN (13 mestna šifra artikla) | C4: Šifra artikla dobavitelja | D4: Opis artikla | E4: Opomba | F4: Cena 2026 marec | G4: Osnovna merska enota (merska enota cenika- m, m,kos,kg,l,ml,t,vreča) | H4: Neto teža izdelka ( kg) | I4: Dolžina (cm) | J4: Širina (cm) | K4: Višina (cm) | L4: Količina pakiranja (osnovne enote mere v paketu) | M4: Vrsta pakiranja (škatla,vreča,vedro) | N4: Neto teža (kg) | O4: Bruto teža (kg) | P4: Dolžina (cm) | Q4: Širina (cm) | R4: Višina (cm) | S4: Količina pakiranja (osnovne enote mere v paleti) | T4: Neto teža (kg) | U4: Bruto teža (kg) | V4: Dolžina (cm) | W4: Širina (cm) | X4: Višina (cm)
B5: MINERALNI ZAKLJUČNI SLOJI
B6: 4011361181327 | C6: 403-15 | D6: weberprim 403 (univerzalni osnovni premaz za mineralne podlage in omete), 15 l | F6: 5.000 | G6: lt | H6: 1 | L6: 15 | M6: vedro | N6: 15 | O6: 15.15 | S6: 360 | T6: 360
B7: 3830041058039 | C7: K440N | D7: webermin freestyle praskani omet 3,0 mm, 30 kg (43 zgodovinskih odtenkov) | F7: 0.980 | G7: kg | H7: 1 | L7: 30 | M7: vre | N7: 30 | O7: 30.15 | P7: 50 | Q7: 30 | R7: 12 | S7: 1080 | T7: 1080
B8: 5997234574078 | C8: O481-T0 | D8: weberter praskani omet 3,0 mm, 30 kg, barvni odtenki skupine T0 | F8: 0.518 | G8: kg | H8: 1 | L8: 30 | M8: vre | N8: 30 | O8: 30.12 | P8: 55 | Q8: 25 | R8: 12 | S8: 1080 | T8: 1080
C9: O481-T1 | D9: weberter praskani omet 3,0 mm, 30 kg, barvni odtenki skupine T1 | F9: 0.646 | G9: kg | H9: 1 | L9: 30 | M9: vre | N9: 30 | O9: 30.12 | P9: 55 | Q9: 25 | R9: 12 | S9: 1080 | T9: 1080
C10: O481-T2 | D10: weberter praskani omet 3,0 mm, 30 kg, barvni odtenki skupine T2 | F10: 0.897 | G10: kg | H10: 1 | L10: 30 | M10: vre | N10: 30 | O10: 30.12 | P10: 55 | Q10: 25 | R10: 12 | S10: 1080 | T10: 1080
C11: O481-T3 | D11: weberter praskani omet 3,0 mm, 30 kg, barvni odtenki skupine T3 | F11: 1.558 | G11: kg | H11: 1 | L11: 30 | M11: vre | N11: 30 | O11: 30.12 | P11: 55 | Q11: 25 | R11: 12 | S11: 1080 | T11: 1080
B12: 3830078210554 | C12: 200-10-0030 | D12: webertop 200 AquaBalance 1 mm, bel, 25 kg - mineralni fini omet za praskano strukturo | F12: 1.342 | G12: kg | H12: 1 | L12: 25 | M12: vre | N12: 25 | O12: 25.12 | P12: 55 | Q12: 25 | R12: 12 | S12: 1050 | T12: 1050
B13: 3830078210561 | C13: 200-60-0030 | D13: webertop 200 AquaBalance 6 mm, bel, 25 kg - mineralni fini omet za praskano strukturo | F13: 1.342 | G13: kg | H13: 1 | L13: 25 | M13: vre | N13: 25 | O13: 25.12 | P13: 55 | Q13: 25 | R13: 12 | S13: 1050 | T13: 1050
B14: 4011361189293 | C14: 200-80-0030 | D14: webertop 200 AquaBalance 8 mm, bel, 25 kg - mineralni fini omet za praskano strukturo | F14: 1.342 | G14: kg | H14: 1 | L14: 25 | M14: vre | N14: 25 | O14: 25.12 | P14: 55 | Q14: 25 | R14: 12 | S14: 1050 | T14: 1050
B16: 3830041058053 | C16: R581N | D16: webermin freestyle zaribani omet 1,5 mm, 30 kg | F16: 1.290 | G16: kg | H16: 1 | L16: 30 | M16: vre | N16: 30 | O16: 30.15 | P16: 50 | Q16: 30 | R16: 12 | S16: 1080 | T16: 1080
B17: 3830041058060 | C17: R582N | D17: webermin freestyle zaribani omet 2,0 mm, 30 kg | F17: 1.390 | G17: kg | H17: 1 | L17: 30 | M17: vre | N17: 30 | O17: 30.15 | P17: 50 | Q17: 30 | R17: 12 | S17: 1080 | T17: 1080
B18: 3830041058046 | C18: S000N | D18: webermin brizgani omet 1,5 mm, 30 kg | F18: 0.824 | G18: kg | H18: 1 | L18: 30 | M18: vre | N18: 30 | O18: 30.15 | P18: 50 | Q18: 30 | R18: 12 | S18: 1080 | T18: 1080
B20: 3830078210639 | C20: 280-15-0010 | D20: weberstar 280 AquaBalance -1,5 mm, bel, 25 kg - mineralni omet | F20: 1.726 | G20: kg | H20: 1 | L20: 25 | M20: vre | N20: 25 | O20: 25.12 | P20: 55 | Q20: 25 | R20: 12 | S20: 1050 | T20: 1050
B21: 3830078210646 | C21: 280-30-0010 | D21: weberstar 280 AquaBalance - 3,0 mm, bel, 25 kg | F21: 1.726 | G21: kg | H21: 1 | L21: 25 | M21: vre | N21: 25 | O21: 25.12 | P21: 55 | Q21: 25 | R21: 12 | S21: 1050 | T21: 1050
B22: 4011361176804 | C22: 272-40-0010 | D22: weberstar 272, bel, 4 mm, 30 kg - mineralni grobi omet | F22: 1.217 | G22: kg | H22: 1 | L22: 30 | M22: vre | N22: 30 | O22: 30.15 | P22: 50 | Q22: 30 | R22: 12 | S22: 1260 | T22: 1260
B23: 3830078210622 | C23: 272-60-0010 | D23: weberstar 272, bel, 6 mm, 30 kg - mineralni grobi omet | F23: 1.217 | G23: kg | H23: 1 | L23: 30 | M23: vre | N23: 30 | O23: 30.15 | P23: 50 | Q23: 30 | R23: 12 | S23: 1260 | T23: 1260
B24: 3830078210608 | C24: 261-05-0020 | D24: weberstar 261 AquaBalance - bel, 0,5 mm, 25 kg, mineralni fini omet | F24: 2.288 | G24: kg | H24: 1 | L24: 25 | M24: vre | N24: 25 | O24: 25.12 | P24: 55 | Q24: 25 | R24: 12 | S24: 1050 | T24: 1050
B25: TANKOSLOJNI ZAKLJUČNI OMETI
B26: 3830041050019 | C26: G700 | D26: weber osnovni premaz za omete, 20 kg (bel, rumen, rdeč, zelen, siv) | F26: 3.090 | G26: kg | H26: 1 | L26: 20 | M26: ved | N26: 20 | O26: 20.72 | P26: 40 | Q26: 30 | R26: 30 | S26: 320 | T26: 320
B27: 3830041050026 | C27: G705 | D27: weber osnovni premaz za omete, 5 kg (bel, rumen, rdeč, zelen, siv) | F27: 3.370 | G27: kg | H27: 1 | L27: 5 | M27: ved | N27: 5 | O27: 5.26 | P27: 30 | Q27: 20 | R27: 19 | S27: 300 | T27: 300
B29: 3830078210714 | C29: R095W001 | D29: weberpas perSil omet 1,0 mm, 25 kg, beli | F29: 2.220 | G29: kg | H29: 1 | L29: 25 | M29: ved | N29: 25 | O29: 25.72 | P29: 40 | Q29: 30 | R29: 30 | S29: 400 | T29: 400
B30: 3830041055663 | C30: R095 | D30: weberpas perSil omet 1,0 mm, 25 kg, barvni | F30: 2.550 | G30: kg | H30: 1 | L30: 25 | M30: ved | N30: 25 | O30: 25.72 | P30: 40 | Q30: 30 | R30: 30 | S30: 400 | T30: 400
B31: 3830041055687 | C31: R095 | D31: weberpas perSil omet 1,0 mm, 25 kg, A odtenki | F31: =F30+1.17 -> 3.720 | G31: kg | H31: 1 | L31: 25 | M31: ved | N31: 25 | O31: 25.72 | P31: 40 | Q31: 30 | R31: 30 | S31: 400 | T31: 400
B32: 3830078210738 | C32: R895W001 | D32: weberpas perSil omet 2,0 mm, 25 kg, beli | F32: 2.220 | G32: kg | H32: 1 | L32: 25 | M32: ved | N32: 25 | O32: 25.72 | P32: 40 | Q32: 30 | R32: 30 | S32: 400 | T32: 400
B33: 3830041055748 | C33: R895 | D33: weberpas perSil omet 2,0 mm, 25 kg, barvni | F33: 2.550 | G33: kg | H33: 1 | L33: 25 | M33: ved | N33: 25 | O33: 25.72 | P33: 40 | Q33: 30 | R33: 30 | S33: 400 | T33: 400
B34: 3830041055762 | C34: R895 | D34: weberpas perSil omet 2,0 mm, 25 kg, A odtenki | F34: =F33+1.17 -> 3.720 | G34: kg | H34: 1 | L34: 25 | M34: ved | N34: 25 | O34: 25.72 | P34: 40 | Q34: 30 | R34: 30 | S34: 400 | T34: 400
B35: 3830078210721 | C35: R995W001 | D35: weberpas perSil omet 1,5 mm, 25 kg, beli | F35: 2.220 | G35: kg | H35: 1 | L35: 25 | M35: ved | N35: 25 | O35: 25.72 | P35: 40 | Q35: 30 | R35: 30 | S35: 400 | T35: 400
B36: 3830041055700 | C36: R995 | D36: weberpas perSil omet 1,5 mm, 25 kg, barvni | F36: 2.550 | G36: kg | H36: 1 | L36: 25 | M36: ved | N36: 25 | O36: 25.72 | P36: 40 | Q36: 30 | R36: 30 | S36: 400 | T36: 400
B37: 3830041055724 | C37: R995 | D37: weberpas perSil omet 1,5 mm, 25 kg, A odtenki | F37: 3.720 | G37: kg | H37: 1 | L37: 25 | M37: ved | N37: 25 | O37: 25.72 | P37: 40 | Q37: 30 | R37: 30 | S37: 400 | T37: 400
B38: 3830078210745 | C38: R795W001 | D38: weberpas perSil omet 3,0 mm, 25 kg, beli | F38: 2.220 | G38: kg | H38: 1 | L38: 25 | M38: ved | N38: 25 | O38: 25.72 | P38: 40 | Q38: 30 | R38: 30 | S38: 400 | T38: 400
B39: 3830041055786 | C39: R795 | D39: weberpas perSil omet 3,0 mm, 25 kg, barvni | F39: 2.550 | G39: kg | H39: 1 | L39: 25 | M39: ved | N39: 25 | O39: 25.72 | P39: 40 | Q39: 30 | R39: 30 | S39: 400 | T39: 400
B40: 3830041055809 | C40: R795 | D40: weberpas perSil omet 3,0 mm, 25 kg, A odtenki | F40: 3.720 | G40: kg | H40: 1 | L40: 25 | M40: ved | N40: 25 | O40: 25.72 | P40: 40 | Q40: 30 | R40: 30 | S40: 400 | T40: 400
B42: 3830078210677 | C42: R055W001 | D42: weberpas topDry omet 1,0 mm, 25 kg, beli | F42: 3.300 | G42: kg | H42: 1 | L42: 25 | M42: ved | N42: 25 | O42: 25.72 | P42: 40 | Q42: 30 | R42: 30 | S42: 400 | T42: 400
B43: 3830041055908 | C43: R055 | D43: weberpas topDry omet 1,0 mm, 25 kg, barvni | F43: 3.300 | G43: kg | H43: 1 | L43: 25 | M43: ved | N43: 25 | O43: 25.72 | P43: 40 | Q43: 30 | R43: 30 | S43: 400 | T43: 400
B44: 3830041055922 | C44: R055 | D44: weberpas topDry omet 1,0 mm, 25 kg, A odtenki | F44: =F43+1.17 -> 4.470 | G44: kg | H44: 1 | L44: 25 | M44: ved | N44: 25 | O44: 25.72 | P44: 40 | Q44: 30 | R44: 30 | S44: 400 | T44: 400
B45: 3830078210691 | C45: R855W001 | D45: weberpas topDry omet 2,0 mm, 25 kg, beli | F45: 3.300 | G45: kg | H45: 1 | L45: 25 | M45: ved | N45: 25 | O45: 25.72 | P45: 40 | Q45: 30 | R45: 30 | S45: 400 | T45: 400
B46: 3830041055984 | C46: R855 | D46: weberpas topDry omet 2,0 mm, 25 kg, barvni | F46: 3.300 | G46: kg | H46: 1 | L46: 25 | M46: ved | N46: 25 | O46: 25.72 | P46: 40 | Q46: 30 | R46: 30 | S46: 400 | T46: 400
B47: 3830041056004 | C47: R855 | D47: weberpas topDry omet 2,0 mm, 25 kg, A odtenki | F47: =F46+1.17 -> 4.470 | G47: kg | H47: 1 | L47: 25 | M47: ved | N47: 25 | O47: 25.72 | P47: 40 | Q47: 30 | R47: 30 | S47: 400 | T47: 400
B48: 3830078210684 | C48: R955W001 | D48: weberpas topDry omet 1,5 mm, 25 kg, beli | F48: 3.300 | G48: kg | H48: 1 | L48: 25 | M48: ved | N48: 25 | O48: 25.72 | P48: 40 | Q48: 30 | R48: 30 | S48: 400 | T48: 400
B49: 3830041055946 | C49: R955 | D49: weberpas topDry omet 1,5 mm, 25 kg, barvni | F49: 3.300 | G49: kg | H49: 1 | L49: 25 | M49: ved | N49: 25 | O49: 25.72 | P49: 40 | Q49: 30 | R49: 30 | S49: 400 | T49: 400
B50: 3830041055960 | C50: R955 | D50: weberpas topDry omet 1,5 mm, 25 kg, A odtenki | F50: 4.470 | G50: kg | H50: 1 | L50: 25 | M50: ved | N50: 25 | O50: 25.72 | P50: 40 | Q50: 30 | R50: 30 | S50: 400 | T50: 400
B51: 3830078210707 | C51: R755W001 | D51: weberpas topDry omet 3,0 mm, 25 kg, beli | F51: 3.300 | G51: kg | H51: 1 | L51: 25 | M51: ved | N51: 25 | O51: 25.72 | P51: 40 | Q51: 30 | R51: 30 | S51: 400 | T51: 400
B52: 3830041056028 | C52: R755 | D52: weberpas topDry omet 3,0 mm, 25 kg, barvni | F52: 3.300 | G52: kg | H52: 1 | L52: 25 | M52: ved | N52: 25 | O52: 25.72 | P52: 40 | Q52: 30 | R52: 30 | S52: 400 | T52: 400
B53: 3830041056042 | C53: R755 | D53: weberpas topDry omet 3,0 mm, 25 kg, A odtenki | F53: 4.470 | G53: kg | H53: 1 | L53: 25 | M53: ved | N53: 25 | O53: 25.72 | P53: 40 | Q53: 30 | R53: 30 | S53: 400 | T53: 400
B55: 3830041059029 | C55: R065 | D55: weberpas Trend omet 1,0 mm, 25 kg, barvni | F55: 2.270 | G55: kg | H55: 1 | L55: 25 | M55: ved | N55: 25 | O55: 25.72 | P55: 40 | Q55: 30 | R55: 30 | S55: 400 | T55: 400
B56: 3830041059036 | C56: R065 | D56: weberpas Trend omet 1,0 mm, 25 kg, A toni | F56: =F55+1.17 -> 3.440 | G56: kg | H56: 1 | L56: 25 | M56: ved | N56: 25 | O56: 25.72 | P56: 40 | Q56: 30 | R56: 30 | S56: 400 | T56: 400
B57: 3830041059043 | C57: R065W001 | D57: weberpas Trend omet 1,0 mm, 25 kg, beli | F57: 2.040 | G57: kg | H57: 1 | L57: 25 | M57: ved | N57: 25 | O57: 25.72 | P57: 40 | Q57: 30 | R57: 30 | S57: 400 | T57: 400
B58: 3830041059050 | C58: R865 | D58: weberpas Trend omet 2,0 mm, 25 kg, barvni | F58: 2.270 | G58: kg | H58: 1 | L58: 25 | M58: ved | N58: 25 | O58: 25.72 | P58: 40 | Q58: 30 | R58: 30 | S58: 400 | T58: 400
B59: 3830041059067 | C59: R865 | D59: weberpas Trend omet 2,0 mm, 25 kg, A toni | F59: =F58+1.17 -> 3.440 | G59: kg | H59: 1 | L59: 25 | M59: ved | N59: 25 | O59: 25.72 | P59: 40 | Q59: 30 | R59: 30 | S59: 400 | T59: 400
B60: 3830041059074 | C60: R865W001 | D60: weberpas Trend omet 2,0 mm, 25 kg, beli | F60: 2.040 | G60: kg | H60: 1 | L60: 25 | M60: ved | N60: 25 | O60: 25.72 | P60: 40 | Q60: 30 | R60: 30 | S60: 400 | T60: 400
B61: 3830041059081 | C61: R965W001 | D61: weberpas Trend omet 1,5 mm, 25 kg, beli | F61: 2.040 | G61: kg | H61: 1 | L61: 25 | M61: ved | N61: 25 | O61: 25.72 | P61: 40 | Q61: 30 | R61: 30 | S61: 400 | T61: 400
B62: 3830041059098 | C62: R965 | D62: weberpas Trendomet 1,5 mm, 25 kg, barvni | F62: 2.270 | G62: kg | H62: 1 | L62: 25 | M62: ved | N62: 25 | O62: 25.72 | P62: 40 | Q62: 30 | R62: 30 | S62: 400 | T62: 400
B63: 3830041059104 | C63: R965 | D63: weberpas Trend omet 1,5 mm, 25 kg, A toni | F63: =F62+1.17 -> 3.440 | G63: kg | H63: 1 | L63: 25 | M63: ved | N63: 25 | O63: 25.72 | P63: 40 | Q63: 30 | R63: 30 | S63: 400 | T63: 400
B64: 3830041059111 | C64: R765W001 | D64: weberpas Trend omet 3,0 mm, 25 kg, beli | F64: 2.040 | G64: kg | H64: 1 | L64: 25 | M64: ved | N64: 25 | O64: 25.72 | P64: 40 | Q64: 30 | R64: 30 | S64: 400 | T64: 400
B65: 3830041059128 | C65: R765 | D65: weberpas Trendomet 3,0 mm, 25 kg, barvni | F65: 2.270 | G65: kg | H65: 1 | L65: 25 | M65: ved | N65: 25 | O65: 25.72 | P65: 40 | Q65: 30 | R65: 30 | S65: 400 | T65: 400
B66: 3830041059135 | C66: R765 | D66: weberpas Trend omet 3,0 mm, 25 kg, A toni | F66: =F65+1.17 -> 3.440 | G66: kg | H66: 1 | L66: 25 | M66: ved | N66: 25 | O66: 25.72 | P66: 40 | Q66: 30 | R66: 30 | S66: 400 | T66: 400
B68: 3830078210790 | C68: D935W001 | D68: weberpas SiLSi [q3 tech] 1,5 K, 25 kg, beli | F68: 2.600 | G68: kg | H68: 1 | L68: 25 | M68: ved | N68: 25 | O68: 25.72 | P68: 40 | Q68: 30 | R68: 30 | S68: 400 | T68: 400
B69: 3830060818256 | C69: D935 | D69: weberpas SiLSi [q3 tech] 1,5 K, 25 kg, barvni | F69: 2.920 | G69: kg | H69: 1 | L69: 25 | M69: ved | N69: 25 | O69: 25.72 | P69: 40 | Q69: 30 | R69: 30 | S69: 400 | T69: 400
B70: 3830078210806 | C70: D435W001 | D70: weberpas SiLSi [q3 tech] 2,0 K, 25 kg, beli | F70: 2.600 | G70: kg | H70: 1 | L70: 25 | M70: ved | N70: 25 | O70: 25.72 | P70: 40 | Q70: 30 | R70: 30 | S70: 400 | T70: 400
B71: 3830060818270 | C71: D435 | D71: weberpas SiLSi [q3 tech] 2,0 K, 25 kg, barvni | F71: 2.920 | G71: kg | H71: 1 | L71: 25 | M71: ved | N71: 25 | O71: 25.72 | P71: 40 | Q71: 30 | R71: 30 | S71: 400 | T71: 400
B73: 3830078210752 | C73: R035W001 | D73: weberpas extraClean omet 1,0 mm, 25 kg, beli | F73: 2.510 | G73: kg | H73: 1 | L73: 25 | M73: ved | N73: 25 | O73: 25.72 | P73: 30 | Q73: 40 | R73: 30 | S73: 400 | T73: 400
B74: 3830060818287 | C74: R035 | D74: weberpas extraClean omet 1,0 mm, 25 kg, barvni | F74: 2.910 | G74: kg | H74: 1 | L74: 25 | M74: ved | N74: 25 | O74: 25.72 | P74: 30 | Q74: 40 | R74: 30 | S74: 400 | T74: 400
B75: 3830060818294 | C75: R035 | D75: weberpas extraClean omet 1,0 mm, 25 kg, A toni | F75: =F74+1.17 -> 4.080 | G75: kg | H75: 1 | L75: 25 | M75: ved | N75: 25 | O75: 25.72 | P75: 30 | Q75: 40 | R75: 30 | S75: 400 | T75: 400
B76: 3830078210769 | C76: R935W001 | D76: weberpas extraClean omet 1,5 mm, 25 kg, beli | F76: 2.510 | G76: kg | H76: 1 | L76: 25 | M76: ved | N76: 25 | O76: 25.72 | P76: 30 | Q76: 40 | R76: 30 | S76: 400 | T76: 400
B77: 3830060818300 | C77: R935 | D77: weberpas extraClean omet 1,5 mm, 25 kg, barvni | F77: 2.910 | G77: kg | H77: 1 | L77: 25 | M77: ved | N77: 25 | O77: 25.72 | P77: 30 | Q77: 40 | R77: 30 | S77: 400 | T77: 400
B78: 3830060818317 | C78: R935 | D78: weberpas extraClean omet 1,5 mm, 25 kg, A toni | F78: =F77+1.17 -> 4.080 | G78: kg | H78: 1 | L78: 25 | M78: ved | N78: 25 | O78: 25.72 | P78: 30 | Q78: 40 | R78: 30 | S78: 400 | T78: 400
B79: 3830078210776 | C79: R435W001 | D79: weberpas extraClean omet 2,0 mm, 25 kg, beli | F79: 2.510 | G79: kg | H79: 1 | L79: 25 | M79: ved | N79: 25 | O79: 25.72 | P79: 30 | Q79: 40 | R79: 30 | S79: 400 | T79: 400
B80: 3830060818324 | C80: R435 | D80: weberpas extraClean omet 2,0 mm, 25 kg, barvni | F80: 2.910 | G80: kg | H80: 1 | L80: 25 | M80: ved | N80: 25 | O80: 25.72 | P80: 30 | Q80: 40 | R80: 30 | S80: 400 | T80: 400
B81: 3830060818331 | C81: R435 | D81: weberpas extraClean omet 2,0 mm, 25 kg, A toni | F81: 4.080 | G81: kg | H81: 1 | L81: 25 | M81: ved | N81: 25 | O81: 25.72 | P81: 30 | Q81: 40 | R81: 30 | S81: 400 | T81: 400
B82: 3830078210783 | C82: R335W001 | D82: weberpas extraClean omet 3,0 mm, 25 kg, beli | F82: 2.510 | G82: kg | H82: 1 | L82: 25 | M82: ved | N82: 25 | O82: 25.72 | P82: 30 | Q82: 40 | R82: 30 | S82: 400 | T82: 400
B83: 3830060819581 | C83: R335 | D83: weberpas extraClean omet 3,0 mm, 25 kg, barvni | F83: 2.910 | G83: kg | H83: 1 | L83: 25 | M83: ved | N83: 25 | O83: 25.72 | P83: 30 | Q83: 40 | R83: 30 | S83: 400 | T83: 400
B84: 3830041058824 | C84: R335 | D84: weberpas extraClean omet 3,0 mm, 25 kg, A toni | F84: 4.080 | G84: kg | H84: 1 | L84: 25 | M84: ved | N84: 25 | O84: 25.72 | P84: 30 | Q84: 40 | R84: 30 | S84: 400 | T84: 400
B85: TANKOSLOJNI ZAKLJUČNI OMETI Z VMEŠANIMI BLEŠČICAMI WEBERDESIGN BRILLIANT MAX
B86: 3830078211490 | C86: RS095W001 | D86: weberpas perSil omet 1,0 mm, 25 kg, beli + weberdesign brilliant MAX | F86: =F29+1.2 -> 3.420 | G86: kg | H86: 1 | L86: 25 | M86: ved | N86: 25 | O86: 25.72 | P86: 40 | Q86: 30 | R86: 30 | S86: 400 | T86: 400
B87: 3830078211506 | C87: RS095 | D87: weberpas perSil omet 1,0 mm, 25 kg, barvni + weberdesign brilliant MAX | F87: =F30+1.2 -> 3.750 | G87: kg | H87: 1 | L87: 25 | M87: ved | N87: 25 | O87: 25.72 | P87: 40 | Q87: 30 | R87: 30 | S87: 400 | T87: 400
B88: 3830078211513 | C88: RS095 | D88: weberpas perSil omet 1,0 mm, 25 kg, A odtenki + weberdesign brilliant MAX | F88: 4.920 | G88: kg | H88: 1 | L88: 25 | M88: ved | N88: 25 | O88: 25.72 | P88: 40 | Q88: 30 | R88: 30 | S88: 400 | T88: 400
B89: 3830078211551 | C89: RS895W001 | D89: weberpas perSil omet 2,0 mm, 25 kg, beli + weberdesign brilliant MAX | F89: 3.420 | G89: kg | H89: 1 | L89: 25 | M89: ved | N89: 25 | O89: 25.72 | P89: 40 | Q89: 30 | R89: 30 | S89: 400 | T89: 400
B90: 3830078211568 | C90: RS895 | D90: weberpas perSil omet 2,0 mm, 25 kg, barvni + weberdesign brilliant MAX | F90: 3.750 | G90: kg | H90: 1 | L90: 25 | M90: ved | N90: 25 | O90: 25.72 | P90: 40 | Q90: 30 | R90: 30 | S90: 400 | T90: 400
B91: 3830078211575 | C91: RS895 | D91: weberpas perSil omet 2,0 mm, 25 kg, A odtenki + weberdesign brilliant MAX | F91: 4.920 | G91: kg | H91: 1 | L91: 25 | M91: ved | N91: 25 | O91: 25.72 | P91: 40 | Q91: 30 | R91: 30 | S91: 400 | T91: 400
B92: 3830078211520 | C92: RS995W001 | D92: weberpas perSil omet 1,5 mm, 25 kg, beli + weberdesign brilliant MAX | F92: 3.420 | G92: kg | H92: 1 | L92: 25 | M92: ved | N92: 25 | O92: 25.72 | P92: 40 | Q92: 30 | R92: 30 | S92: 400 | T92: 400
B93: 3830078211537 | C93: RS995 | D93: weberpas perSil omet 1,5 mm, 25 kg, barvni + weberdesign brilliant MAX | F93: 3.750 | G93: kg | H93: 1 | L93: 25 | M93: ved | N93: 25 | O93: 25.72 | P93: 40 | Q93: 30 | R93: 30 | S93: 400 | T93: 400
B94: 3830078211544 | C94: RS995 | D94: weberpas perSil omet 1,5 mm, 25 kg, A odtenki + weberdesign brilliant MAX | F94: 4.920 | G94: kg | H94: 1 | L94: 25 | M94: ved | N94: 25 | O94: 25.72 | P94: 40 | Q94: 30 | R94: 30 | S94: 400 | T94: 400
B95: 3830078211582 | C95: RS795W001 | D95: weberpas perSil omet 3,0 mm, 25 kg, beli + weberdesign brilliant MAX | F95: 3.420 | G95: kg | H95: 1 | L95: 25 | M95: ved | N95: 25 | O95: 25.72 | P95: 40 | Q95: 30 | R95: 30 | S95: 400 | T95: 400
B96: 3830078211599 | C96: RS795 | D96: weberpas perSil omet 3,0 mm, 25 kg, barvni + weberdesign brilliant MAX | F96: 3.750 | G96: kg | H96: 1 | L96: 25 | M96: ved | N96: 25 | O96: 25.72 | P96: 40 | Q96: 30 | R96: 30 | S96: 400 | T96: 400
B97: 3830078211605 | C97: RS795 | D97: weberpas perSil omet 3,0 mm, 25 kg, A odtenki + weberdesign brilliant MAX | F97: 4.920 | G97: kg | H97: 1 | L97: 25 | M97: ved | N97: 25 | O97: 25.72 | P97: 40 | Q97: 30 | R97: 30 | S97: 400 | T97: 400
B99: 3830078211377 | C99: RS055W001 | D99: weberpas topDry omet 1,0 mm, 25 kg, beli + weberdesign brilliant MAX | F99: =F42+1.2 -> 4.500 | G99: kg | H99: 1 | L99: 25 | M99: ved | N99: 25 | O99: 25.72 | P99: 40 | Q99: 30 | R99: 30 | S99: 400 | T99: 400
B100: 3830078211384 | C100: RS055 | D100: weberpas topDry omet 1,0 mm, 25 kg, barvni + weberdesign brilliant MAX | F100: =F43+1.2 -> 4.500 | G100: kg | H100: 1 | L100: 25 | M100: ved | N100: 25 | O100: 25.72 | P100: 40 | Q100: 30 | R100: 30 | S100: 400 | T100: 400
B101: 3830078211391 | C101: RS055 | D101: weberpas topDry omet 1,0 mm, 25 kg, A odtenki + weberdesign brilliant MAX | F101: 5.670 | G101: kg | H101: 1 | L101: 25 | M101: ved | N101: 25 | O101: 25.72 | P101: 40 | Q101: 30 | R101: 30 | S101: 400 | T101: 400
B102: 3830078211438 | C102: RS855W001 | D102: weberpas topDry omet 2,0 mm, 25 kg, beli + weberdesign brilliant MAX | F102: 4.500 | G102: kg | H102: 1 | L102: 25 | M102: ved | N102: 25 | O102: 25.72 | P102: 40 | Q102: 30 | R102: 30 | S102: 400 | T102: 400
B103: 3830078211445 | C103: RS855 | D103: weberpas topDry omet 2,0 mm, 25 kg, barvni + weberdesign brilliant MAX | F103: 4.500 | G103: kg | H103: 1 | L103: 25 | M103: ved | N103: 25 | O103: 25.72 | P103: 40 | Q103: 30 | R103: 30 | S103: 400 | T103: 400
B104: 3830078211452 | C104: RS855 | D104: weberpas topDry omet 2,0 mm, 25 kg, A odtenki + weberdesign brilliant MAX | F104: 5.670 | G104: kg | H104: 1 | L104: 25 | M104: ved | N104: 25 | O104: 25.72 | P104: 40 | Q104: 30 | R104: 30 | S104: 400 | T104: 400
B105: 3830078211407 | C105: RS955W001 | D105: weberpas topDry omet 1,5 mm, 25 kg, beli + weberdesign brilliant MAX | F105: 4.500 | G105: kg | H105: 1 | L105: 25 | M105: ved | N105: 25 | O105: 25.72 | P105: 40 | Q105: 30 | R105: 30 | S105: 400 | T105: 400
B106: 3830078211414 | C106: RS955 | D106: weberpas topDry omet 1,5 mm, 25 kg, barvni + weberdesign brilliant MAX | F106: 4.500 | G106: kg | H106: 1 | L106: 25 | M106: ved | N106: 25 | O106: 25.72 | P106: 40 | Q106: 30 | R106: 30 | S106: 400 | T106: 400
B107: 3830078211421 | C107: RS955 | D107: weberpas topDry omet 1,5 mm, 25 kg, A odtenki + weberdesign brilliant MAX | F107: 5.670 | G107: kg | H107: 1 | L107: 25 | M107: ved | N107: 25 | O107: 25.72 | P107: 40 | Q107: 30 | R107: 30 | S107: 400 | T107: 400
B108: 3830078211469 | C108: RS755W001 | D108: weberpas topDry omet 3,0 mm, 25 kg, beli + weberdesign brilliant MAX | F108: 4.500 | G108: kg | H108: 1 | L108: 25 | M108: ved | N108: 25 | O108: 25.72 | P108: 40 | Q108: 30 | R108: 30 | S108: 400 | T108: 400
B109: 3830078211476 | C109: RS755 | D109: weberpas topDry omet 3,0 mm, 25 kg, barvni + weberdesign brilliant MAX | F109: 4.500 | G109: kg | H109: 1 | L109: 25 | M109: ved | N109: 25 | O109: 25.72 | P109: 40 | Q109: 30 | R109: 30 | S109: 400 | T109: 400
B110: 3830078211483 | C110: RS755 | D110: weberpas topDry omet 3,0 mm, 25 kg, A odtenki + weberdesign brilliant MAX | F110: 5.670 | G110: kg | H110: 1 | L110: 25 | M110: ved | N110: 25 | O110: 25.72 | P110: 40 | Q110: 30 | R110: 30 | S110: 400 | T110: 400
B112: 3830078211629 | C112: RS065 | D112: weberpas Trend omet 1,0 mm, 25 kg, barvni + weberdesign brilliant MAX | F112: =F55+1.2 -> 3.470 | G112: kg | H112: 1 | L112: 25 | M112: ved | N112: 25 | O112: 25.72 | P112: 40 | Q112: 30 | R112: 30 | S112: 400 | T112: 400
B113: 3830078211636 | C113: RS065 | D113: weberpas Trend omet 1,0 mm, 25 kg, A toni + weberdesign brilliant MAX | F113: =F56+1.2 -> 4.640 | G113: kg | H113: 1 | L113: 25 | M113: ved | N113: 25 | O113: 25.72 | P113: 40 | Q113: 30 | R113: 30 | S113: 400 | T113: 400
B114: 3830078211612 | C114: RS065W001 | D114: weberpas Trend omet 1,0 mm, 25 kg, beli + weberdesign brilliant MAX | F114: 3.240 | G114: kg | H114: 1 | L114: 25 | M114: ved | N114: 25 | O114: 25.72 | P114: 40 | Q114: 30 | R114: 30 | S114: 400 | T114: 400
B115: 3830078211643 | C115: RS865 | D115: weberpas Trend omet 2,0 mm, 25 kg, barvni + weberdesign brilliant MAX | F115: 3.470 | G115: kg | H115: 1 | L115: 25 | M115: ved | N115: 25 | O115: 25.72 | P115: 40 | Q115: 30 | R115: 30 | S115: 400 | T115: 400
B116: 3830078211650 | C116: RS865 | D116: weberpas Trend omet 2,0 mm, 25 kg, A toni + weberdesign brilliant MAX | F116: 4.640 | G116: kg | H116: 1 | L116: 25 | M116: ved | N116: 25 | O116: 25.72 | P116: 40 | Q116: 30 | R116: 30 | S116: 400 | T116: 400
B117: 3830078211667 | C117: RS865W001 | D117: weberpas Trend omet 2,0 mm, 25 kg, beli + weberdesign brilliant MAX | F117: 3.240 | G117: kg | H117: 1 | L117: 25 | M117: ved | N117: 25 | O117: 25.72 | P117: 40 | Q117: 30 | R117: 30 | S117: 400 | T117: 400
B118: 3830078211681 | C118: RS965W001 | D118: weberpas Trend omet 1,5 mm, 25 kg, beli + weberdesign brilliant MAX | F118: 3.240 | G118: kg | H118: 1 | L118: 25 | M118: ved | N118: 25 | O118: 25.72 | P118: 40 | Q118: 30 | R118: 30 | S118: 400 | T118: 400
B119: 3830078211698 | C119: RS965 | D119: weberpas Trendomet 1,5 mm, 25 kg, barvni + weberdesign brilliant MAX | F119: 3.470 | G119: kg | H119: 1 | L119: 25 | M119: ved | N119: 25 | O119: 25.72 | P119: 40 | Q119: 30 | R119: 30 | S119: 400 | T119: 400
B120: 3830078211674 | C120: RS965 | D120: weberpas Trend omet 1,5 mm, 25 kg, A toni + weberdesign brilliant MAX | F120: 4.640 | G120: kg | H120: 1 | L120: 25 | M120: ved | N120: 25 | O120: 25.72 | P120: 40 | Q120: 30 | R120: 30 | S120: 400 | T120: 400
B121: 3830078211704 | C121: RS765W001 | D121: weberpas Trend omet 3,0 mm, 25 kg, beli + weberdesign brilliant MAX | F121: 3.240 | G121: kg | H121: 1 | L121: 25 | M121: ved | N121: 25 | O121: 25.72 | P121: 40 | Q121: 30 | R121: 30 | S121: 400 | T121: 400
B122: 3830078211711 | C122: RS765 | D122: weberpas Trendomet 3,0 mm, 25 kg, barvni + weberdesign brilliant MAX | F122: 3.470 | G122: kg | H122: 1 | L122: 25 | M122: ved | N122: 25 | O122: 25.72 | P122: 40 | Q122: 30 | R122: 30 | S122: 400 | T122: 400
B123: 3830078211728 | C123: RS765 | D123: weberpas Trend omet 3,0 mm, 25 kg, A toni + weberdesign brilliant MAX | F123: 4.640 | G123: kg | H123: 1 | L123: 25 | M123: ved | N123: 25 | O123: 25.72 | P123: 40 | Q123: 30 | R123: 30 | S123: 400 | T123: 400
B124: WEBERDESIGN
B125: 3830041058275 | C125: NPU 700 | D125: weberdesign osnovni premaz, 20 kg (odtenki B02, B03, B04, B05) | F125: 6.270 | G125: kg | H125: 1 | L125: 20 | M125: ved | N125: 20 | O125: 20.72 | P125: 30 | Q125: 40 | R125: 30 | S125: 360 | T125: 360
B126: 3830041058282 | C126: NPU 705 | D126: weberdesign osnovni premaz, 5 kg (odtenki B02, B03, B04, B05) | F126: 6.460 | G126: kg | H126: 1 | L126: 5 | M126: ved | N126: 5 | O126: 5.26 | P126: 25 | Q126: 20 | R126: 17 | S126: 300 | T126: 300
B127: 3830041059142 | C127: R245 | D127: weber.pas Design 0,2 mm, 25 kg | F127: 4.140 | G127: kg | H127: 1 | L127: 25 | M127: ved | N127: 25 | O127: 25.72 | P127: 40 | Q127: 30 | R127: 30 | S127: 400 | T127: 400
B128: 3830041059159 | C128: R545 | D128: weber.pas Design 0,5 mm, 25 kg | F128: 4.350 | G128: kg | H128: 1 | L128: 25 | M128: ved | N128: 25 | O128: 25.72 | P128: 40 | Q128: 30 | R128: 30 | S128: 400 | T128: 400
B129: 3830078212008 | C129: R011 | D129: weberpas Decofino 1,0 mm, 30 kg | F129: 4.140 | G129: kg | H129: 1 | L129: 30 | M129: ved | N129: 30 | O129: 30.72 | P129: 40 | Q129: 30 | R129: 30 | S129: 480 | T129: 480
B130: 3830041056172 | C130: A320 | D130: weberdesign lazur fasadna barva, 20 kg (odtenki bor, hrast, mahagoni, oreh, tik) | F130: 6.400 | G130: kg | H130: 1 | L130: 20 | M130: ved | N130: 20 | O130: 20.72 | P130: 40 | Q130: 30 | R130: 30 | S130: 320 | T130: 320
B131: 3830041056189 | C131: A327 | D131: weberdesign lazur fasadna barva, 7 kg (odtenki bor, hrast, mahagoni, oreh, tik) | F131: 6.600 | G131: kg | H131: 1 | L131: 7 | M131: ved | N131: 7 | O131: 7.27 | P131: 30 | Q131: 20 | R131: 19
B132: 3830041058381 | C132: H719-G | D132: weber effecto glass, 20 kg | F132: 10.050 | G132: kg | H132: 1 | L132: 20 | M132: ved | N132: 20 | O132: 4.23 | P132: 30 | Q132: 40 | R132: 30
B133: 9004231095706 | C133: H719-T | D133: weber transparentne bleščice, 8 kg | F133: 31.550 | G133: kg | H133: 1 | L133: 8 | M133: ved | N133: 8 | O133: 8.4 | P133: 35 | Q133: 25 | R133: 12
B134: 3830041057179 | C134: PODFL | D134: weberdesign orodje za oblikovanje letnic | F134: 32.100 | G134: kos | H134: 0.08 | I134: 15 | J134: 10 | L134: 1 | M134: kos | N134: 0.08 | O134: 0.08
B135: 3830041057131 | C135: SPT | D135: weberdesign opeka matrični vzorec (dim. 103,5 x 89 cm) | F135: 14.450 | G135: kos | H135: 0.1 | I135: 103.5 | J135: 89 | L135: 1 | M135: kos | N135: 0.1 | O135: 0.1
B136: MARMOLIT, OMET ZA PODZIDEK
B137: 8581550179009 | C137: 10400037S | D137: weberpas marmolit, 2,0 mm, 20 kg | F137: 3.150 | G137: kg | H137: 1 | L137: 20 | M137: ved | N137: 20 | O137: 20.56 | P137: 39 | Q137: 30 | R137: 30 | S137: 480 | T137: 480
B138: 8581550179016 | C138: 10400049S | D138: weberpas marmolit, 2,0 mm, 20 kg | F138: 3.150 | G138: kg | H138: 1 | L138: 20 | M138: ved | N138: 20 | O138: 20.56 | P138: 39 | Q138: 30 | R138: 30 | S138: 480 | T138: 480
B139: 8581550178811 | C139: 1040M043S | D139: weberpas marmolit, 3,0 mm, 20 kg | F139: 3.150 | G139: kg | H139: 1 | L139: 20 | M139: ved | N139: 20 | O139: 20.56 | P139: 32 | Q139: 32 | R139: 31 | S139: 480 | T139: 480
B140: 8581550178859 | C140: 1040M055S | D140: weberpas marmolit, 3,0 mm, 20 kg | F140: 3.150 | G140: kg | H140: 1 | L140: 20 | M140: ved | N140: 20 | O140: 20.56 | P140: 32 | Q140: 32 | R140: 31 | S140: 480 | T140: 480
B141: 8581550178866 | C141: 1040M058S | D141: weberpas marmolit, 3,0 mm, 20 kg | F141: 3.150 | G141: kg | H141: 1 | L141: 20 | M141: ved | N141: 20 | O141: 20.56 | P141: 32 | Q141: 32 | R141: 31 | S141: 480 | T141: 480
B142: 8581550178873 | C142: 1040M059S | D142: weberpas marmolit, 3,0 mm, 20 kg | F142: 3.150 | G142: kg | H142: 1 | L142: 20 | M142: ved | N142: 20 | O142: 20.56 | P142: 32 | Q142: 32 | R142: 31 | S142: 480 | T142: 480
B143: 8581550178880 | C143: 1040M101S | D143: weberpas marmolit, 3,0 mm, 20 kg | F143: 3.150 | G143: kg | H143: 1 | L143: 20 | M143: ved | N143: 20 | O143: 20.56 | P143: 32 | Q143: 32 | R143: 31 | S143: 480 | T143: 480
B144: 8581550179030 | C144: 1040M115S | D144: weberpas marmolit, 2,0 mm, 20 kg | F144: 3.150 | G144: kg | H144: 1 | L144: 20 | M144: ved | N144: 20 | O144: 20.56 | P144: 32 | Q144: 32 | R144: 31 | S144: 480 | T144: 480
B145: 8581550179047 | C145: 1040M116S | D145: weberpas marmolit, 2,0 mm, 20 kg | F145: 3.150 | G145: kg | H145: 1 | L145: 20 | M145: ved | N145: 20 | O145: 20.56 | P145: 32 | Q145: 32 | R145: 31 | S145: 480 | T145: 480
B146: 8581550179054 | C146: 1040M118S | D146: weberpas marmolit, 2,0 mm, 20 kg | F146: 3.150 | G146: kg | H146: 1 | L146: 20 | M146: ved | N146: 20 | O146: 20.56 | P146: 39 | Q146: 30 | R146: 30 | S146: 480 | T146: 480
B147: 8581550178934 | C147: 10500040S | D147: weberpas marmolit, 1,5 mm, 20 kg | F147: 3.150 | G147: kg | H147: 1 | L147: 20 | M147: ved | N147: 20 | O147: 20.56 | P147: 39 | Q147: 30 | R147: 30 | S147: 480 | T147: 480
B148: 8581550178941 | C148: 10500075S | D148: weberpas marmolit, 1,5 mm, 20 kg | F148: 3.150 | G148: kg | H148: 1 | L148: 20 | M148: ved | N148: 20 | O148: 20.56 | P148: 39 | Q148: 30 | R148: 30 | S148: 480 | T148: 480
B149: 8581550178965 | C149: 1050M062S | D149: weberpas marmolit, 1,5 mm, 20 kg | F149: 3.150 | G149: kg | H149: 1 | L149: 20 | M149: ved | N149: 20 | O149: 20.56 | P149: 32 | Q149: 32 | R149: 31 | S149: 480 | T149: 480
B150: 8581550178972 | C150: 1050M065S | D150: weberpas marmolit, 1,5 mm, 20 kg | F150: 3.150 | G150: kg | H150: 1 | L150: 20 | M150: ved | N150: 20 | O150: 20.56 | P150: 39 | Q150: 30 | R150: 30 | S150: 480 | T150: 480
B151: 8581550178989 | C151: 1050M074S | D151: weberpas marmolit, 1,5 mm, 20 kg | F151: 3.150 | G151: kg | H151: 1 | L151: 20 | M151: ved | N151: 20 | O151: 20.56 | P151: 32 | Q151: 32 | R151: 31 | S151: 480 | T151: 480
B152: 8581550178996 | C152: 1050M080S | D152: weberpas marmolit, 1,5 mm, 20 kg | F152: 3.150 | G152: kg | H152: 1 | L152: 20 | M152: ved | N152: 20 | O152: 20.56 | P152: 39 | Q152: 30 | R152: 30 | S152: 480 | T152: 480
B153: FASADNE BARVE
B154: 3830078211322 | C154: A030W001 | D154: weberton purolast, barva za beton, 25 kg, bela | F154: 11.430 | G154: kg | H154: 1 | L154: 25 | M154: ved | N154: 25 | O154: 25.72 | P154: 40 | Q154: 30 | R154: 30 | S154: 600 | T154: 600
B155: 3830078211315 | C155: A030 | D155: weberton purolast, barva za beton, 25 kg, barvni odtenki brez doplačila | F155: 12.350 | G155: kg | H155: 1 | L155: 25 | M155: ved | N155: 25 | O155: 25.72 | P155: 40 | Q155: 30 | R155: 30 | S155: 600 | T155: 600
B157: 3830078210219 | C157: A530W001 | D157: weberton elastik barva, 25 kg, bela | F157: 8.250 | G157: kg | H157: 1 | L157: 25 | M157: ved | N157: 25 | O157: 25.72 | P157: 40 | Q157: 30 | R157: 30 | S157: 600 | T157: 600
B158: 3830078210226 | C158: A530 | D158: weberton elastik barva, 25 kg, barvni | F158: 8.750 | G158: kg | H158: 1 | L158: 25 | M158: ved | N158: 25 | O158: 25.72 | P158: 40 | Q158: 30 | R158: 30 | S158: 600 | T158: 600
B159: 3830078210233 | C159: A530 | D159: weberton elastik barva, 25 kg, A odtenki | F159: =F158+5.75 -> 14.500 | G159: kg | H159: 1 | L159: 25 | M159: ved | N159: 25 | O159: 25.72 | P159: 40 | Q159: 30 | R159: 30 | S159: 600 | T159: 600
B160: 3830078210240 | C160: A535W001 | D160: weberton elastik barva, 5 kg, bela | F160: 9.300 | G160: kg | H160: 1 | L160: 7 | M160: ved | N160: 7 | O160: 7.27 | P160: 30 | Q160: 20 | R160: 19
B161: 3830078210257 | C161: A535 | D161: weberton elastik barva, 5 kg, barvni | F161: 9.860 | G161: kg | H161: 1 | L161: 7 | M161: ved | N161: 7 | O161: 7.27 | P161: 30 | Q161: 20 | R161: 19
B162: 3830078210264 | C162: A535 | D162: weberton elastik barva, 5 kg, A odtenki | F162: =F161+5.75 -> 15.610 | G162: kg | H162: 1 | L162: 7 | M162: ved | N162: 7 | O162: 7.27 | P162: 30 | Q162: 20 | R162: 19
B164: 3830078211018 | C164: A212 | D164: weberton akrilna fasadna barva, 22 kg, A odtenek | F164: =F166+5.75 -> 10.450 | G164: kg | H164: 1 | L164: 22 | M164: ved | N164: 22 | O164: 22.72 | P164: 40 | Q164: 30 | R164: 30 | S164: 352 | T164: 352
B165: 3830078211070 | C165: A212W001 | D165: weberton akrilna fasadna barva, 22 kg, bela | F165: 3.650 | G165: kg | H165: 1 | L165: 22 | M165: ved | N165: 22 | O165: 22.72 | P165: 40 | Q165: 30 | R165: 30 | S165: 352 | T165: 352
B166: 3830078211001 | C166: A212 | D166: weberton akrilna fasadna barva, 22 kg, barvni | F166: 4.700 | G166: kg | H166: 1 | L166: 22 | M166: ved | N166: 22 | O166: 22.72 | P166: 40 | Q166: 30 | R166: 30 | S166: 352 | T166: 352
B167: 3830041051801 | C167: A217 | D167: weberton akrilna fasadna barva, 7 kg, A odtenek | F167: =F169+5.75 -> 10.770 | G167: kg | H167: 1 | L167: 7 | M167: ved | N167: 7 | O167: 7.27 | P167: 30 | Q167: 20 | R167: 19
B168: 3830078210868 | C168: A217W001 | D168: weberton akrilna fasadna barva, 7 kg, bela | F168: 3.900 | G168: kg | H168: 1 | L168: 7 | M168: ved | N168: 7 | O168: 7.27 | P168: 30 | Q168: 20 | R168: 19
B169: 3830041051771 | C169: A217 | D169: weberton akrilna fasadna barva, 7 kg, barvni | F169: 5.020 | G169: kg | H169: 1 | L169: 7 | M169: ved | N169: 7 | O169: 7.27 | P169: 30 | Q169: 20 | R169: 19
B171: 3830078210998 | C171: A142 | D171: weberton silikatna fasadna barva, 22 kg, A odtenek | F171: =F173+5.75 -> 9.800 | G171: kg | H171: 1 | L171: 22 | M171: ved | N171: 22 | O171: 22.72 | P171: 40 | Q171: 30 | R171: 30 | S171: 352 | T171: 352
B172: 3830078211063 | C172: A142W001 | D172: weberton silikatna fasadna barva, 22 kg, bela | F172: 3.350 | G172: kg | H172: 1 | L172: 22 | M172: ved | N172: 22 | O172: 22.72 | P172: 40 | Q172: 30 | R172: 30 | S172: 352 | T172: 352
B173: 3830078210981 | C173: A142 | D173: weberton silikatna fasadna barva, 22 kg, barvni | F173: 4.050 | G173: kg | H173: 1 | L173: 22 | M173: ved | N173: 22 | O173: 22.72 | P173: 40 | Q173: 30 | R173: 30 | S173: 352 | T173: 352
B174: 3830041051399 | C174: A147 | D174: weberton silikatna fasadna barva, 7 kg, A odtenek | F174: =F176+5.75 -> 10.850 | G174: kg | H174: 1 | L174: 7 | M174: ved | N174: 7 | O174: 7.27 | P174: 30 | Q174: 20 | R174: 19
B175: 3830078210882 | C175: A147W001 | D175: weberton silikatna fasadna barva, 7 kg, bela | F175: 4.200 | G175: kg | H175: 1 | L175: 7 | M175: ved | N175: 7 | O175: 7.27 | P175: 30 | Q175: 20 | R175: 19
B176: 3830041051368 | C176: A147 | D176: weberton silikatna fasadna barva, 7 kg, barvni | F176: 5.100 | G176: kg | H176: 1 | L176: 7 | M176: ved | N176: 7 | O176: 7.27 | P176: 30 | Q176: 20 | R176: 19
B178: 3830078211032 | C178: A552 | D178: weberton silikonska fasadna barva, 22 kg, A odtenek | F178: =F180+5.75 -> 11.970 | G178: kg | H178: 1 | L178: 22 | M178: ved | N178: 22 | O178: 22.72 | P178: 40 | Q178: 30 | R178: 30 | S178: 352 | T178: 352
B179: 3830078211087 | C179: A552W001 | D179: weberton silikonska fasadna barva, 22 kg, bela | F179: 5.830 | G179: kg | H179: 1 | L179: 22 | M179: ved | N179: 22 | O179: 22.72 | P179: 40 | Q179: 30 | R179: 30 | S179: 352 | T179: 352
B180: 3830078211025 | C180: A552 | D180: weberton silikonska fasadna barva, 22 kg, barvni | F180: 6.220 | G180: kg | H180: 1 | L180: 22 | M180: ved | N180: 22 | O180: 22.72 | P180: 40 | Q180: 30 | R180: 30 | S180: 352 | T180: 352
B181: 3830041051900 | C181: A557 | D181: weberton silikonska fasadna barva, 7 kg, A odtenek | F181: =F183+5.75 -> 13.470 | G181: kg | H181: 1 | L181: 7 | M181: ved | N181: 7 | O181: 7.27 | P181: 30 | Q181: 20 | R181: 19
B182: 3830078210905 | C182: A557W001 | D182: weberton silikonska fasadna barva, 7 kg, bela | F182: 7.250 | G182: kg | H182: 1 | L182: 7 | M182: ved | N182: 7 | O182: 7.27 | P182: 30 | Q182: 20 | R182: 19
B183: 3830041051870 | C183: A557 | D183: weberton silikonska fasadna barva, 7 kg, barvni | F183: 7.720 | G183: kg | H183: 1 | L183: 7 | M183: ved | N183: 7 | O183: 7.27 | P183: 30 | Q183: 20 | R183: 19
B185: 3830078211056 | C185: A602 | D185: weberton topDry fasadna barva, 22 kg, A odtenek | F185: =F187+5.75 -> 13.510 | G185: kg | H185: 1 | L185: 22 | M185: ved | N185: 22 | O185: 22.72 | P185: 40 | Q185: 30 | R185: 30 | S185: 352 | T185: 352
B186: 3830078211094 | C186: A602W001 | D186: weberton topDry fasadna barva, 22 kg, bela | F186: 7.760 | G186: kg | H186: 1 | L186: 22 | M186: ved | N186: 22 | O186: 22.72 | P186: 40 | Q186: 30 | R186: 30 | S186: 352 | T186: 352
B187: 3830078211049 | C187: A602 | D187: weberton topDry fasadna barva, 22 kg, barvni | F187: 7.760 | G187: kg | H187: 1 | L187: 22 | M187: ved | N187: 22 | O187: 22.72 | P187: 40 | Q187: 30 | R187: 30 | S187: 352 | T187: 352
B188: 3830060818355 | C188: A607 | D188: weberton topDry fasadna barva, 7 kg, A odtenek | F188: =F190+5.75 -> 15.470 | G188: kg | H188: 1 | L188: 7 | M188: ved | N188: 7 | O188: 7.27 | P188: 30 | Q188: 20 | R188: 19
B189: 3830078210844 | C189: A607W001 | D189: weberton topDry fasadna barva, 7 kg, bela | F189: 9.720 | G189: kg | H189: 1 | L189: 7 | M189: ved | N189: 7 | O189: 7.27 | P189: 30 | Q189: 20 | R189: 19
B190: 3830060818362 | C190: A607 | D190: weberton topDry fasadna barva, 7 kg, barvni | F190: 9.720 | G190: kg | H190: 1 | L190: 7 | M190: ved | N190: 7 | O190: 7.27 | P190: 30 | Q190: 20 | R190: 19
B192: 9004231150160 | C192: 585K-L | D192: weberton transparentni premaz, 15 kg | F192: 7.350 | G192: kg | H192: 1 | L192: 15 | M192: ved | N192: 15 | O192: 15.58 | P192: 20 | Q192: 30 | R192: 19 | S192: 240 | T192: 240
B193: FASADNE BARVE Z VMEŠANIMI BLEŠČICAMI WEBERDESIGN BRILLIANT MINI
B194: 3830078211933 | C194: AS212 | D194: weberton akrilna fasadna barva, 22 kg, A odtenek + weberdesign brilliant MINI | F194: =F164+1.2 -> 11.650 | G194: kg | H194: 1 | L194: 22 | M194: ved | N194: 22 | O194: 22.72 | P194: 40 | Q194: 30 | R194: 30 | S194: 352 | T194: 352
B195: 3830078211919 | C195: AS212W001 | D195: weberton akrilna fasadna barva, 22 kg, bela + weberdesign brilliant MINI | F195: =F165+1.2 -> 4.850 | G195: kg | H195: 1 | L195: 22 | M195: ved | N195: 22 | O195: 22.72 | P195: 40 | Q195: 30 | R195: 30 | S195: 352 | T195: 352
B196: 3830078211926 | C196: AS212 | D196: weberton akrilna fasadna barva, 22 kg, barvni + weberdesign brilliant MINI | F196: 5.900 | G196: kg | H196: 1 | L196: 22 | M196: ved | N196: 22 | O196: 22.72 | P196: 40 | Q196: 30 | R196: 30 | S196: 352 | T196: 352
B197: 3830078211964 | C197: AS217 | D197: weberton akrilna fasadna barva, 7 kg, A odtenek + weberdesign brilliant MINI | F197: 11.970 | G197: kg | H197: 1 | L197: 7 | M197: ved | N197: 7 | O197: 7.27 | P197: 30 | Q197: 20 | R197: 19
B198: 3830078211940 | C198: AS217W001 | D198: weberton akrilna fasadna barva, 7 kg, bela + weberdesign brilliant MINI | F198: 5.100 | G198: kg | H198: 1 | L198: 7 | M198: ved | N198: 7 | O198: 7.27 | P198: 30 | Q198: 20 | R198: 19
B199: 3830078211957 | C199: AS217 | D199: weberton akrilna fasadna barva, 7 kg, barvni + weberdesign brilliant MINI | F199: 6.220 | G199: kg | H199: 1 | L199: 7 | M199: ved | N199: 7 | O199: 7.27 | P199: 30 | Q199: 20 | R199: 19
B201: 3830078211810 | C201: AS552 | D201: weberton silikonska fasadna barva, 22 kg, A odtenek + weberdesign brilliant MINI | F201: =F178+1.2 -> 13.170 | G201: kg | H201: 1 | L201: 22 | M201: ved | N201: 22 | O201: 22.72 | P201: 40 | Q201: 30 | R201: 30 | S201: 352 | T201: 352
B202: 3830078211797 | C202: AS552W001 | D202: weberton silikonska fasadna barva, 22 kg, bela + weberdesign brilliant MINI | F202: =F179+1.2 -> 7.030 | G202: kg | H202: 1 | L202: 22 | M202: ved | N202: 22 | O202: 22.72 | P202: 40 | Q202: 30 | R202: 30 | S202: 352 | T202: 352
B203: 3830078211803 | C203: AS552 | D203: weberton silikonska fasadna barva, 22 kg, barvni + weberdesign brilliant MINI | F203: 7.420 | G203: kg | H203: 1 | L203: 22 | M203: ved | N203: 22 | O203: 22.72 | P203: 40 | Q203: 30 | R203: 30 | S203: 352 | T203: 352
B204: 3830078211841 | C204: AS557 | D204: weberton silikonska fasadna barva, 7 kg, A odtenek + weberdesign brilliant MINI | F204: 14.670 | G204: kg | H204: 1 | L204: 7 | M204: ved | N204: 7 | O204: 7.27 | P204: 30 | Q204: 20 | R204: 19
B205: 3830078211827 | C205: AS557W001 | D205: weberton silikonska fasadna barva, 7 kg, bela + weberdesign brilliant MINI | F205: 8.450 | G205: kg | H205: 1 | L205: 7 | M205: ved | N205: 7 | O205: 7.27 | P205: 30 | Q205: 20 | R205: 19
B206: 3830078211834 | C206: AS557 | D206: weberton silikonska fasadna barva, 7 kg, barvni + weberdesign brilliant MINI | F206: 8.920 | G206: kg | H206: 1 | L206: 7 | M206: ved | N206: 7 | O206: 7.27 | P206: 30 | Q206: 20 | R206: 19
B208: 3830078211872 | C208: AS602 | D208: weberton topDry fasadna barva, 22 kg, A odtenek + weberdesign brilliant MINI | F208: =F185+1.2 -> 14.710 | G208: kg | H208: 1 | L208: 22 | M208: ved | N208: 22 | O208: 22.72 | P208: 40 | Q208: 30 | R208: 30 | S208: 352 | T208: 352
B209: 3830078211858 | C209: AS602W001 | D209: weberton topDry fasadna barva, 22 kg, bela + weberdesign brilliant MINI | F209: =F186+1.2 -> 8.960 | G209: kg | H209: 1 | L209: 22 | M209: ved | N209: 22 | O209: 22.72 | P209: 40 | Q209: 30 | R209: 30 | S209: 352 | T209: 352
B210: 3830078211865 | C210: AS602 | D210: weberton topDry fasadna barva, 22 kg, barvni + weberdesign brilliant MINI | F210: 8.960 | G210: kg | H210: 1 | L210: 22 | M210: ved | N210: 22 | O210: 22.72 | P210: 40 | Q210: 30 | R210: 30 | S210: 352 | T210: 352
B211: 3830078211902 | C211: AS607 | D211: weberton topDry fasadna barva, 7 kg, A odtenek + weberdesign brilliant MINI | F211: 16.670 | G211: kg | H211: 1 | L211: 7 | M211: ved | N211: 7 | O211: 7.27 | P211: 30 | Q211: 20 | R211: 19
B212: 3830078211889 | C212: AS607W001 | D212: weberton topDry fasadna barva, 7 kg, bela + weberdesign brilliant MINI | F212: 10.920 | G212: kg | H212: 1 | L212: 7 | M212: ved | N212: 7 | O212: 7.27 | P212: 30 | Q212: 20 | R212: 19
B213: 3830078211896 | C213: AS607 | D213: weberton topDry fasadna barva, 7 kg, barvni + weberdesign brilliant MINI | F213: 10.920 | G213: kg | H213: 1 | L213: 7 | M213: ved | N213: 7 | O213: 7.27 | P213: 30 | Q213: 20 | R213: 19
B214: OSNOVNI PREMAZI, DODATKI IN LUŽILA
B215: 3830046429711 | C215: 9711 | D215: weber aqua plus 5,5 kg | F215: 4.680 | G215: kg | H215: 1 | L215: 5.5 | M215: ved | N215: 5.5 | O215: 5.73 | P215: 25 | Q215: 25 | R215: 18
B216: 9004170055403 | C216: 554K-S | D216: weberprim Akril (akrilni osnovni premaz), 10 kg | F216: 8.370 | G216: kg | H216: 1 | L216: 10 | M216: pla | N216: 10 | O216: 10.44 | P216: 18 | Q216: 22 | R216: 30 | S216: 330 | T216: 330
B217: 9004170005576 | C217: 557K | D217: weberprim silikat (silikatni osnovni premaz), 10 kg | F217: 4.970 | G217: kg | H217: 1 | L217: 10 | M217: pla | N217: 10 | O217: 10.44 | P217: 18 | Q217: 22 | R217: 30 | S217: 330 | T217: 330
... 473 more rows
